bitfinex/quotes_SOLUSD_20260302
["timestamp","ask_amount","ask_price","bid_price","bid_amount"]
[1772467530462,1.70108919,88.756,88.71,8.11799846]
[1772467530652,1.70108919,88.786,88.73,8.11799846]
[1772467530964,8.11799846,88.77,88.723,0.93739669]
[1772467531349,11.26646311,88.759,88.713,0.28432314]
[1772467531662,11.26646311,88.759,88.712,11.27243213]
[1772467531841,9.81908765,88.75,88.712,11.27243213]
[1772467532457,11.26646311,88.759,88.679,0.93572815]
[1772467532458,1.70108919,88.746,88.679,0.93572815]
[1772467532758,1.70108919,88.733,88.69,8.11799846]
[1772467533951,1.70108919,88.86,88.82,8.11799846]
[1772467534343,1.70108919,88.86,88.83,8.11799846]
[1772467534549,11.25239113,88.87,88.83,8.11799846]
[1772467534758,12.95060488,88.893,88.85,8.11799846]
[1772467534970,8.11799846,88.89,88.84,8.11799846]
[1772467535163,1.70108919,88.889,88.84,8.11799846]
[1772467535470,11.24857314,88.901,88.86,8.11799846]
[1772467535851,1.70108919,88.919,88.87,8.11799846]
[1772467536270,1.70108919,88.919,88.88,8.11799846]
[1772467536471,1.70108919,88.919,88.87,8.11799846]
[1772467536665,8.11799846,88.92,88.861,11.25353079]
[1772467536666,1.70108919,88.949,88.9,8.11799846]
[1772467536846,11.24289986,88.946,88.9,8.11799846]
[1772467537174,1.70108919,88.929,88.881,0.28432314]
[1772467537351,1.70108919,88.944,88.891,11.24973281]
[1772467537551,11.24315572,88.943,88.9,8.11799846]
[1772467537871,8.11799846,88.94,88.892,0.14216157]
[1772467538084,1.70108919,88.92,88.861,0.93185168]
[1772467538383,1.70108919,88.952,88.91,8.11799846]
[1772467538751,1.70108919,88.968,88.92,8.11799846]
[1772467538960,190.99835963,89.006,88.89,8.11799846]
[1772467538961,1.70108919,88.939,88.89,8.11799846]
[1772467539572,1.70108919,88.929,88.88,8.11799846]
[1772467539881,1.70108919,88.946,88.9,8.11799846]
[1772467540089,44.94841374,88.991,88.875,11.25174372]
[1772467540090,1.70108919,88.976,88.903,1.21457171]
[1772467540264,1.70108919,88.949,88.9,8.11799846]
[1772467540462,1.70108919,88.969,88.92,8.11799846]
[1772467540969,1.70108919,88.967,88.91,8.11799846]
[1772467541186,1.70108919,88.982,88.914,0.92861696]
[1772467541481,1.70108919,88.982,88.941,11.24340855]
[1772467541998,1.70108919,88.996,88.95,8.11799846]
[1772467542158,1.70108919,88.996,88.96,8.11799846]
[1772467542493,1.70108919,89.004,88.97,8.11799846]
[1772467542789,8.21799846,89.02,88.935,112.44164965]
[1772467542790,1.70108919,89.018,88.954,0.92779076]
[1772467542960,1.70108919,89.009,88.97,8.11799846]
[1772467543162,1.70108919,89.009,88.954,0.92779076]
[1772467543477,1.70108919,89.018,88.942,1.21128094]
[1772467543669,1.70108919,89.016,88.98,8.11799846]
[1772467543869,0.1,89.02,88.99,8.11799846]
[1772467544081,0.1,89.02,88.96,8.11799846]
[1772467544082,1.70108919,89.009,88.96,8.11799846]
[1772467544271,1.70108919,89.009,88.97,8.11799846]
[1772467544856,1.70108919,89.009,88.96,8.11799846]
[1772467545059,1.70108919,89.007,88.96,7.02045449]
[1772467545659,1.70108919,89.005,88.961,11.24088083]
[1772467546072,1.70108919,89.005,88.97,8.11799846]
[1772467546384,1.70108919,89.005,88.96,8.11799846]
[1772467546566,1.70108919,88.997,88.94,8.11799846]
[1772467546767,1.70108919,88.997,88.95,8.11799846]
[1772467547879,1.70840521,88.995,88.95,8.11799846]
[1772467548181,1.70840521,88.995,88.95,19.36021072]
[1772467549590,11.23431408,89.013,88.97,8.11799846]
[1772467549776,12.94261633,89.014,88.97,8.11799846]
[1772467550283,11.23355688,89.019,88.99,8.11799846]
[1772467550803,11.23355688,89.019,88.972,0.92323327]
[1772467550963,11.23355688,89.019,88.99,8.11799846]
[1772467551160,0.1,89.02,88.972,0.92323327]
[1772467551161,11.33351695,89.02,88.98,8.11799846]
[1772467551374,11.33351695,89.02,88.942,11.24328213]
[1772467551375,1.70840521,89.009,88.942,11.24328213]
[1772467551580,1.70840521,89.009,88.96,8.11799846]
[1772467551770,1.70840521,89.009,88.97,8.11799846]
[1772467551972,1.70840521,89.009,88.96,8.11799846]
[1772467552174,1.70840521,89.007,88.947,12.16408413]
[1772467552389,11.23415225,89.015,88.98,8.11799846]
[1772467553085,11.333455,89.02,88.99,8.11799846]
[1772467553292,1.70840521,89.052,89.001,0.92052604]
[1772467553473,1.70840521,89.049,89.0,8.11799846]
[1772467553679,1.70840521,89.039,88.99,8.11799846]
[1772467554066,1.70840521,89.039,89.01,8.11799846]
[1772467554267,1.70840521,89.053,89.02,8.11799846]
[1772467554477,1.70840521,89.051,89.005,11.23524484]
[1772467554685,39.30287921,89.052,88.999,11.23603871]
[1772467554686,1.70840521,89.049,88.999,11.23603871]
[1772467554890,1.70840521,89.049,89.01,8.11799846]
[1772467555390,11.22939406,89.052,88.938,44.97494841]
[1772467555391,1.70840521,89.039,88.99,8.11799846]
[1772467556077,1.70840521,89.037,88.98,8.11799846]
[1772467556271,1.70840521,89.029,88.98,8.11799846]
[1772467556470,1.99272835,89.019,88.96,8.11799846]
[1772467556671,1.70840521,89.019,88.97,8.11799846]
[1772467556889,1.70840521,89.015,88.97,8.11799846]
[1772467557092,1.70840521,89.037,88.99,8.11799846]
[1772467557302,1.70840521,89.035,88.98,8.11799846]
[1772467557485,1.70840521,89.029,88.98,8.11799846]
[1772467557995,1.70840521,89.029,88.947,39.3492754]
[1772467557996,1.70840521,89.009,88.947,11.24265011]
[1772467558197,174.08297577,89.038,88.94,0.81696815]
[1772467558198,1.70840521,88.998,88.94,8.11799846]
[1772467558379,1.70840521,88.985,88.93,8.11799846]
[1772467558579,1.70840521,88.969,88.92,8.11799846]
[1772467559002,1.70840521,88.949,88.9,8.11799846]
[1772467559590,1.70840521,88.949,88.91,8.11799846]
[1772467559986,1.70840521,88.949,88.9,8.11799846]
[1772467560189,1.70840521,88.949,88.835,45.02719738]
[1772467560190,1.70840521,88.939,88.88,8.11799846]
[1772467560401,1.70840521,88.945,88.91,8.11799846]
[1772467560696,1.70840521,88.945,88.891,0.81404488]
[1772467560912,1.70840521,88.929,88.88,8.11799846]
[1772467561081,1.70840521,88.925,88.87,8.11799846]
[1772467561683,1.70840521,88.925,88.89,8.11799846]
[1772467562200,1.70840521,88.923,88.89,8.11799846]
[1772467562512,1.70840521,88.919,88.87,8.11799846]
[1772467562796,1.70840521,88.955,88.9,8.11799846]
[1772467562971,1.70840521,88.955,88.91,8.11799846]
[1772467563589,1.70840521,88.987,88.94,8.11799846]
[1772467563801,8.11799846,89.0,88.95,8.11799846]
[1772467563802,1.70840521,88.983,88.95,8.11799846]
[1772467564001,1.70840521,88.983,88.96,8.11799846]
[1772467564299,1.70840521,88.983,88.931,0.81103074]
[1772467564475,1.70840521,88.969,88.92,8.11799846]
[1772467564673,1.70840521,88.969,88.93,8.11799846]
[1772467564890,1.70840521,88.969,88.92,8.11799846]
[1772467565817,1.70840521,88.969,88.913,39.36432242]
[1772467565818,1.70840521,89.009,88.96,8.11799846]
[1772467566182,1.70840521,89.005,88.96,8.11799846]
[1772467566485,1.70840521,88.989,88.95,8.11799846]
[1772467567080,39.3223081,89.008,88.927,1.12451786]
[1772467567081,1.70840521,89.005,88.96,8.11799846]
[1772467567272,1.70840521,89.005,88.927,1.12451786]
[1772467567273,1.70840521,89.029,88.99,8.11799846]
[1772467567480,1.70840521,89.048,89.0,8.11799846]
[1772467568186,11.23002459,89.047,89.01,8.11799846]
[1772467568387,1.70840521,89.048,89.01,8.11799846]
[1772467568593,11.23002459,89.047,89.01,8.11799846]
[1772467568794,1.70840521,89.046,89.0,8.11799846]
[1772467569298,1.70840521,89.039,88.99,8.11799846]
[1772467569674,1.70840521,89.046,88.99,0.80489918]
[1772467569886,39.30508607,89.047,88.99,0.80489918]
[1772467569887,11.23002459,89.047,89.01,8.11799846]
[1772467570088,1.70840521,89.058,89.01,8.11799846]
[1772467570282,1.70840521,89.057,89.011,11.23456651]
[1772467570688,1.70840521,89.057,89.02,8.11799846]
[1772467570881,11.2280519,89.063,89.03,8.11799846]
[1772467571187,11.22838535,89.06,89.03,8.11799846]
[1772467571381,11.22473032,89.089,89.05,8.11799846]
[1772467571598,39.26892481,89.129,89.08,8.11799846]
[1772467571783,8.11799846,89.11,89.027,1.65653791]
[1772467571980,8.11799846,89.11,89.011,39.32098279]
[1772467571981,8.11799846,89.11,89.05,8.11799846]
[1772467572296,12.09073613,89.165,89.057,1.65653791]
[1772467572297,39.27333116,89.119,89.057,1.65653791]
[1772467572478,39.27333116,89.119,89.08,8.06634823]
[1772467572685,0.1,89.13,89.1,8.06634823]
[1772467572880,11.2196928,89.129,89.051,0.28432314]
[1772467573100,0.1,89.13,89.091,1.65653791]
[1772467573338,8.06634823,89.2,89.121,1.65653791]
[1772467573494,1.70840521,89.169,89.11,8.06634823]
[1772467573712,173.82139302,89.172,89.1,8.06634823]
[1772467573713,1.70840521,89.155,89.1,8.06634823]
[1772467574004,1.70840521,89.155,89.042,275.15105228]
[1772467574005,1.70840521,89.155,89.085,1.65653791]
[1772467574219,8.06634823,89.16,89.11,8.06634823]
[1772467574220,1.70840521,89.153,89.11,8.06634823]
[1772467574505,1.70840521,89.149,89.1,8.06634823]
[1772467574702,0.28432314,89.138,89.069,1.68001933]
[1772467575006,0.28432314,89.126,89.09,8.06634823]
[1772467575205,1.93410655,89.109,89.06,8.06634823]
[1772467575415,1.93410655,89.109,89.07,8.06634823]
[1772467575592,1.64978341,89.109,89.07,8.06634823]
[1772467575789,1.93410655,89.139,89.08,8.06634823]
[1772467576004,1.93410655,89.139,89.1,8.06634823]
[1772467576198,1.93410655,89.137,89.079,1.68001933]
[1772467576400,1.93410655,89.119,89.06,8.06634823]
[1772467576604,1.93410655,89.119,89.07,8.06634823]
[1772467577107,1.93410655,89.119,89.08,8.06634823]
[1772467577108,1.64978341,89.119,89.08,8.06634823]
[1772467577404,0.28432314,89.118,89.07,8.06634823]
[1772467577612,1.55424538,89.114,89.07,8.06634823]
[1772467578215,1.55424538,89.114,89.08,8.06634823]
[1772467578417,1.55424538,89.108,89.06,8.06634823]
[1772467578711,0.28432314,89.103,89.05,8.06634823]
[1772467578891,1.83856852,89.089,89.05,8.06634823]
[1772467579095,1.55424538,89.089,89.05,8.06634823]
[1772467579397,39.27597544,89.113,89.08,8.06634823]
[1772467579592,11.21931517,89.132,89.1,8.06634823]
[1772467579800,39.2676031,89.132,89.1,8.06634823]
[1772467580192,1.55424538,89.131,89.078,1.67357203]
[1772467580491,1.83856852,89.119,89.07,8.06634823]
[1772467580692,11.21956692,89.13,89.1,8.06634823]
[1772467580988,11.21506164,89.166,89.12,8.06634823]
[1772467581201,39.25265444,89.166,89.108,1.67357203]
[1772467581398,39.25265444,89.166,89.14,8.06634823]
[1772467581586,39.25265444,89.166,89.121,1.67357203]
[1772467581796,39.25265444,89.166,89.14,8.06634823]
[1772467582009,40.80689982,89.166,89.121,1.67357203]
[1772467582215,1.55424538,89.159,89.11,8.06634823]
[1772467582413,1.55424538,89.155,89.11,8.06634823]
[1772467583224,8.06634823,89.13,89.072,1.12268726]
[1772467583509,1.55424538,89.102,89.05,8.06634823]
[1772467583806,1.55424538,89.079,89.03,8.06634823]
[1772467584110,1.55424538,89.079,89.04,8.06634823]
[1772467584304,8.06634823,89.09,89.04,8.06634823]
[1772467584305,1.55424538,89.077,89.04,8.06634823]
[1772467584503,1.55424538,89.077,89.02,11.23330851]
[1772467584504,1.55424538,89.077,89.05,8.06634823]
[1772467584713,1.83856852,89.076,89.03,8.06634823]
[1772467585214,1.83856852,89.076,88.989,3.69383402]
[1772467585215,11.22611643,89.078,89.05,8.06634823]
[1772467585513,1.55424538,89.105,89.07,8.06634823]
[1772467585700,39.2715685,89.123,89.1,8.06634823]
[1772467585899,11.22044814,89.123,89.11,8.06634823]
[1772467586108,11.21830827,89.14,89.11,8.06634823]
[1772467586308,28.04432922,89.145,89.12,8.06634823]
[1772467586494,28.04432922,89.145,89.099,1.67357203]
[1772467586495,1.55424538,89.154,89.11,14.0047583]
[1772467586698,1.55424538,89.154,89.12,14.0047583]
[1772467587007,1.55424538,89.154,89.11,14.0047583]
[1772467587215,1.55424538,89.154,89.12,14.0047583]
[1772467587727,11.21586092,89.16,89.13,14.0047583]
[1772467587901,39.2553405,89.16,89.13,14.0047583]
[1772467588095,1.55424538,89.159,89.12,14.0047583]
[1772467588338,11.21440827,89.171,89.14,14.0047583]
[1772467588610,0.28432314,89.166,89.12,14.0047583]
[1772467588806,1.55424538,89.165,89.12,14.0047583]
[1772467589412,0.28432314,89.158,89.11,14.0047583]
[1772467589614,1.55424538,89.159,89.105,1.67357203]
[1772467589914,1.55424538,89.159,89.095,28.0596993]
[1772467589915,1.55424538,89.159,89.13,14.0047583]
[1772467590302,1.55424538,89.159,89.12,14.0047583]
[1772467590617,1.55424538,89.205,89.15,14.0047583]
[1772467590814,1.55424538,89.205,89.137,1.67357203]
[1772467590815,11.21291816,89.183,89.16,14.0047583]
[1772467590999,1.55424538,89.205,89.17,14.0047583]
[1772467591599,1.55424538,89.199,89.14,14.0047583]
[1772467591810,1.55424538,89.189,89.14,14.0047583]
[1772467592014,1.55424538,89.185,89.14,14.0047583]
[1772467592210,3.69383402,89.203,89.119,1.67357203]
[1772467592211,1.55424538,89.179,89.119,1.67357203]
[1772467592421,39.24910847,89.174,89.14,14.0047583]
[1772467593325,1.55424538,89.173,89.13,14.0047583]
[1772467593507,1.55424538,89.169,89.12,14.0047583]
[1772467593907,39.24910847,89.174,89.14,14.0047583]
[1772467594201,1.55424538,89.173,89.13,14.0047583]
[1772467594402,39.24998878,89.172,89.13,14.0047583]
[1772467594713,1.55424538,89.171,89.14,14.0047583]
[1772467594911,39.24998878,89.172,89.12,14.0047583]
[1772467594912,1.55424538,89.169,89.12,14.0047583]
[1772467595212,1.55424538,89.169,89.077,44.90489167]
[1772467595213,11.21428251,89.172,89.15,14.0047583]
[1772467595415,28.03202146,89.184,89.117,12.34332393]
[1772467595416,11.21126507,89.196,89.161,1.67357203]
[1772467595605,1.55424538,89.195,89.15,14.0047583]
[1772467595804,1.55424538,89.189,89.14,14.0047583]
[1772467596009,1.55424538,89.185,89.14,14.0047583]
[1772467596218,1.55424538,89.179,89.13,14.0047583]
[1772467596417,1.83856852,89.176,89.12,14.0047583]
[1772467596724,39.2477881,89.177,89.071,44.9077767]
[1772467596725,34.01054007,89.177,89.151,1.67357203]
[1772467597025,11.20963131,89.209,89.17,14.0047583]
[1772467597203,11.20963131,89.209,89.19,14.0047583]
[1772467597528,1.81063092,89.222,89.2,14.0047583]
[1772467597817,28.01264667,89.246,89.2,14.0047583]
[1772467598120,1.81063092,89.253,89.23,14.0047583]
[1772467598121,11.20513664,89.245,89.23,14.0047583]
[1772467598341,11.20562196,89.241,89.22,14.0047583]
[1772467598522,11.20598848,89.238,89.22,14.0047583]
[1772467598703,28.00781038,89.261,89.23,14.0047583]
[1772467599103,11.20222252,89.268,89.23,14.0047583]
[1772467599305,39.20777882,89.268,89.24,14.0047583]
[1772467599511,1.81063092,89.267,89.184,0.28432314]
[1772467599716,1.81063092,89.267,89.23,14.0047583]
[1772467599923,1.81063092,89.301,89.26,14.0047583]
[1772467600104,1.81063092,89.299,89.27,14.0047583]
[1772467600308,11.19820828,89.3,89.27,14.0047583]
[1772467600505,1.81063092,89.314,89.28,14.0047583]
[1772467600506,11.19682905,89.311,89.28,14.0047583]
[1772467600720,1.81063092,89.355,89.3,14.0047583]
[1772467600919,1.81063092,89.355,89.22,285.81035638]
[1772467600920,1.81063092,89.349,89.32,14.0047583]
[1772467601127,11.1919418,89.35,89.32,14.0047583]
[1772467601428,1.81063092,89.349,89.3,14.0047583]
[1772467601800,1.81063092,89.349,89.22,285.81035638]
[1772467601801,1.81063092,89.329,89.27,0.05796592]
[1772467602001,1.81063092,89.329,89.28,14.0047583]
[1772467602214,1.81063092,89.349,89.3,14.0047583]
[1772467602626,1.81063092,89.347,89.31,14.0047583]
[1772467602820,44.74379977,89.398,89.33,14.0047583]
[1772467602821,1.81063092,89.37,89.33,14.0047583]
[1772467603022,1.81063092,89.37,89.34,14.0047583]
[1772467603215,1.81063092,89.35,89.3,14.0047583]
[1772467603416,1.81063092,89.339,89.29,14.0047583]
[1772467603609,1.81063092,89.339,89.3,14.0047583]
[1772467604209,39.4456831,89.351,89.332,0.13131185]
[1772467604210,1e-08,89.351,89.332,0.13131185]
[1772467604427,1.8763262,89.446,89.357,3.69383402]
[1772467604721,1.8763262,89.444,89.4,14.0047583]
[1772467604926,1.8763262,89.444,89.36,0.28432314]
[1772467604927,1.8763262,89.439,89.39,14.0047583]
[1772467605313,1.8763262,89.439,89.359,39.16785101]
[1772467605517,1.8763262,89.429,89.37,14.0047583]
[1772467605717,1.8763262,89.419,89.35,4.613]
[1772467605913,1.8763262,89.419,89.37,14.0047583]
[1772467606116,1.8763262,89.419,89.35,4.613]
[1772467606117,1.8763262,89.419,89.38,14.0047583]
[1772467606313,1.8763262,89.419,89.37,14.0047583]
[1772467606535,1.8763262,89.419,89.38,14.0047583]
[1772467606723,273.91134212,89.445,89.35,4.613]
[1772467606724,1.8763262,89.467,89.41,14.0047583]
[1772467606929,1.8763262,89.439,89.373,0.03495926]
[1772467607106,14.0047583,89.44,89.357,0.09020934]
[1772467607107,14.0047583,89.42,89.357,0.09020934]
[1772467607430,3.69383402,89.44,89.35,1e-08]
[1772467607431,1.8763262,89.389,89.35,1e-08]
[1772467607620,1.8763262,89.379,89.33,14.0047583]
[1772467607815,1.8763262,89.379,89.35,14.0047583]
[1772467608132,1.8763262,89.379,89.291,44.7972978]
[1772467608133,1.8763262,89.359,89.31,14.0047583]
[1772467608430,1.8763262,89.377,89.34,14.0047583]
[1772467608842,41.0367272,89.376,89.33,14.0047583]
[1772467609013,11.188686,89.376,89.35,14.0047583]
[1772467609215,11.188686,89.376,89.34,14.0047583]
[1772467609506,1.8763262,89.375,89.34,14.0047583]
[1772467610128,11.18705881,89.389,89.36,14.0047583]
[1772467610314,11.18705881,89.389,89.37,14.0047583]
[1772467610627,100.64802949,89.421,89.315,83.97238633]
[1772467610628,27.95887543,89.418,89.38,14.0047583]
[1772467610814,27.95887543,89.418,89.39,14.0047583]
[1772467611015,27.95887543,89.418,89.37,14.0047583]
[1772467611016,1.98163553,89.417,89.37,14.0047583]
[1772467611529,1.98163553,89.409,89.36,14.0047583]
[1772467611926,1.98163553,89.417,89.329,3.97815716]
[1772467612130,1.98163553,89.389,89.314,1.11964529]
[1772467612426,14.0047583,89.37,89.32,14.0047583]
[1772467612621,1.98163553,89.369,89.33,14.0047583]
[1772467612823,1.98163553,89.379,89.33,14.0047583]
[1772467613212,1.98163553,89.379,89.315,12.31596036]
[1772467613418,1.98163553,89.379,89.32,14.0047583]
[1772467613815,1.98163553,89.379,89.33,14.0047583]
[1772467614115,1.98163553,89.379,89.283,44.80090297]
[1772467614116,1.98163553,89.349,89.3,14.0047583]
[1772467614323,1.98163553,89.339,89.31,14.0047583]
[1772467614507,1.98163553,89.355,89.31,14.0047583]
[1772467614907,39.17004274,89.354,89.31,14.0047583]
[1772467615122,39.17004274,89.354,89.32,14.0047583]
[1772467615312,39.17004274,89.354,89.33,14.0047583]
[1772467615623,39.17004274,89.354,89.32,14.0047583]
[1772467615821,11.19144078,89.354,89.33,14.0047583]
[1772467616024,11.19144078,89.354,89.34,14.0047583]
[1772467616323,11.19144078,89.354,89.32,14.0047583]
[1772467616516,1.11960768,89.364,89.309,1.89034203]
[1772467616724,1.80609145,89.363,89.31,14.0047583]
[1772467616919,11.19056411,89.361,89.33,14.0047583]
[1772467617235,11.19056411,89.361,89.311,12.31651195]
[1772467617236,11.18906157,89.373,89.34,14.0047583]
[1772467617424,44.74330426,89.399,89.311,11.19682905]
[1772467617425,11.18668337,89.392,89.36,14.0047583]
[1772467617823,39.1533918,89.392,89.36,14.0047583]
[1772467618019,1.11960768,89.391,89.35,14.0047583]
[1772467618219,1.80609145,89.39,89.35,14.0047583]
[1772467618432,1.80609145,89.388,89.35,14.0047583]
[1772467618627,1.80609145,89.416,89.361,1.89034203]
[1772467618834,39.14332046,89.415,89.364,1.89034203]
[1772467619028,11.18380584,89.415,89.39,14.0047583]
[1772467619534,40.94941191,89.415,89.38,14.0047583]
[1772467619730,40.94941191,89.415,89.367,1.11898127]
[1772467619935,40.94941191,89.415,89.38,14.0047583]
[1772467620633,40.94941191,89.415,89.36,14.0047583]
[1772467620634,1.80609145,89.409,89.36,14.0047583]
[1772467620836,14.0047583,89.39,89.34,14.0047583]
[1772467621033,1.93073244,89.369,89.32,14.0047583]
[1772467621333,1.93073244,89.369,89.33,14.0047583]
[1772467621740,1.93073244,89.398,89.293,4.82477569]
[1772467622048,1.93073244,89.396,89.35,14.0047583]
[1772467622221,1.93073244,89.389,89.34,14.0047583]
[1772467622538,128.62671409,89.406,89.282,28.00108681]
[1772467622539,1.93073244,89.402,89.36,14.0047583]
[1772467622853,39.14988813,89.4,89.36,14.0047583]
[1772467623141,1.11960768,89.399,89.36,14.0047583]
[1772467623640,1.11960768,89.399,89.344,11.1926934]
[1772467623641,2.0394213,89.433,89.39,14.0047583]
[1772467623824,2.0394213,89.415,89.37,14.0047583]
[1772467624026,2.94165127,89.415,89.38,14.0047583]
[1772467624326,167.1,89.459,89.348,0.28432314]
[1772467624327,11.18272196,89.424,89.348,0.28432314]
[1772467624530,11.18121279,89.436,89.41,14.0047583]
[1772467624740,11.18122691,89.436,89.41,14.0047583]
[1772467625038,11.17868638,89.456,89.41,25.18909228]
[1772467625333,11.17868638,89.456,89.42,14.0047583]
[1772467625533,11.17868638,89.456,89.43,14.0047583]
[1772467625737,11.17868638,89.456,89.42,14.0047583]
[1772467626034,11.17718066,89.468,89.45,14.0047583]
[1772467626338,11.17718066,89.468,89.43,14.0047583]
[1772467626637,2.0394213,89.439,89.39,14.0047583]
[1772467626837,2.0394213,89.437,89.39,14.0047583]
[1772467627031,2.0394213,89.435,89.39,14.0047583]
[1772467627220,2.94165127,89.435,89.39,14.0047583]
[1772467627420,2.94165127,89.435,89.4,14.0047583]
[1772467627421,2.0394213,89.435,89.4,14.0047583]
[1772467627615,2.0394213,89.435,89.38,11.18814841]
[1772467627616,2.0394213,89.434,89.39,14.0047583]
[1772467627921,11.18117983,89.436,89.42,14.0047583]
[1772467628131,2.0394213,89.435,89.383,1.11878097]
[1772467628313,2.0394213,89.429,89.38,14.0047583]
[1772467628514,2.0394213,89.427,89.38,14.0047583]
[1772467628718,2.0394213,89.419,89.38,14.0047583]
[1772467628914,2.0394213,89.417,89.38,14.0047583]
[1772467629337,2.0394213,89.415,89.371,11.18930449]
[1772467629517,0.90222997,89.416,89.371,11.18930449]
[1772467629718,0.90222997,89.417,89.371,11.18930449]
[1772467629917,2.0394213,89.416,89.37,14.0047583]
[1772467630120,2.0394213,89.409,89.37,14.0047583]
[1772467630323,39.14200719,89.418,89.343,11.19281868]
[1772467630324,2.0394213,89.446,89.4,14.0047583]
[1772467630620,2.94165127,89.445,89.4,14.0047583]
[1772467630819,2.0394213,89.444,89.4,14.0047583]
[1772467631025,39.1315042,89.442,89.4,14.0047583]
[1772467631226,2.0394213,89.439,89.39,14.0047583]
[1772467631425,2.0394213,89.419,89.37,14.0047583]
[1772467631627,2.0394213,89.417,89.37,14.0047583]
[1772467631833,2.0394213,89.415,89.37,14.0047583]
[1772467632032,14.0047583,89.42,89.37,14.0047583]
[1772467632033,2.0394213,89.409,89.37,14.0047583]
[1772467632237,2.0394213,89.407,89.37,14.0047583]
[1772467632434,2.0394213,89.434,89.39,14.0047583]
[1772467632633,2.0394213,89.452,89.41,14.0047583]
[1772467632838,44.6939116,89.498,89.39,0.04749817]
[1772467632839,2.0394213,89.468,89.44,14.0047583]
[1772467633022,27.93968152,89.479,89.44,14.0047583]
[1772467633220,39.12013232,89.468,89.423,11.18280531]
[1772467633422,11.17718066,89.468,89.44,14.0047583]
[1772467633634,2.0394213,89.485,89.44,14.0047583]
[1772467633831,12.17710084,89.469,89.44,14.0047583]
[1772467634038,1.0,89.469,89.45,14.0047583]
[1772467634338,1.0,89.469,89.44,14.0047583]
[1772467634530,1.0,89.469,89.423,11.18280531]
[1772467634531,1.0,89.469,89.45,9.14321965]
[1772467634926,11.17718066,89.468,89.44,9.14321965]
[1772467635323,1.0,89.469,89.46,9.14321965]
[1772467635523,1.0,89.469,89.45,9.14321965]
[1772467635524,0.90843118,89.469,89.45,9.14321965]
[1772467635720,0.90843118,89.469,89.44,9.14321965]
[1772467635935,11.17718066,89.468,89.44,9.14321965]
[1772467636143,0.90843118,89.469,89.45,9.14321965]
[1772467636321,0.90843118,89.469,89.416,1.11836807]
[1772467636322,2.08520571,89.467,89.42,8.02485158]
[1772467636525,0.28432314,89.424,89.273,44.80638042]
[1772467636737,2.08520571,89.36,89.32,9.14321965]
[1772467636939,2.08520571,89.36,89.28,9.14321965]
[1772467636940,2.08520571,89.409,89.35,9.14321965]
[1772467637139,2.08520571,89.409,89.37,9.14321965]
[1772467637345,2.08520571,89.409,89.38,9.14321965]
[1772467637346,11.18468146,89.408,89.38,9.14321965]
[1772467637546,39.14638511,89.408,89.37,9.14321965]
[1772467637847,2.08520571,89.423,89.38,9.14321965]
[1772467638140,2.08520571,89.438,89.39,9.14321965]
[1772467638349,2.08520571,89.437,89.4,9.14321965]
[1772467638547,3.69383402,89.48,89.342,27.98222906]
[1772467638548,2.08520571,89.454,89.41,13.913496]
[1772467638726,11.17905492,89.453,89.386,0.02180323]
[1772467638927,41.21189793,89.453,89.41,13.913496]
[1772467639129,2.08520571,89.449,89.4,13.913496]
[1772467639344,2.08520571,89.447,89.389,11.18705881]
[1772467639535,2.08520571,89.445,89.41,13.913496]
[1772467639739,2.08520571,89.445,89.39,0.02264406]
[1772467639941,2.08520571,89.445,89.41,13.913496]
[1772467640147,2.08520571,89.445,89.391,0.77550507]
[1772467640148,11.1784301,89.458,89.42,13.913496]
[1772467640548,2.08520571,89.456,89.41,13.913496]
[1772467640745,2.08520571,89.456,89.42,13.913496]
[1772467640926,2.08520571,89.456,89.392,0.02344709]
[1772467641132,27.94226945,89.471,89.44,13.913496]
[1772467641133,2.08520571,89.471,89.44,13.913496]
[1772467641333,1.0,89.5,89.45,13.913496]
[1772467641334,2.99363689,89.469,89.45,13.913496]
[1772467641539,2.08520571,89.467,89.43,13.913496]
[1772467641742,2.08520571,89.487,89.431,1.05343895]
[1772467642026,2.08520571,89.485,89.44,13.913496]
[1772467642233,2.08520571,89.487,89.45,13.913496]
[1772467642748,2.08520571,89.487,89.46,13.913496]
[1772467642950,1.0,89.5,89.47,13.913496]
[1772467643156,1.0,89.5,89.46,13.913496]
[1772467643157,13.2585149,89.499,89.46,13.913496]
[1772467643331,13.913496,89.48,89.435,1.11813048]
[1772467643529,13.913496,89.48,89.391,44.74688105]
[1772467643530,2.08520571,89.469,89.42,13.913496]
[1772467643750,2.08520571,89.467,89.43,13.913496]
[1772467644136,2.08520571,89.467,89.43,13.863496]
[1772467644338,1.0,89.5,89.46,13.913496]
[1772467644558,2.08520571,89.499,89.46,13.913496]
[1772467644936,1.0,89.5,89.48,13.913496]
[1772467645340,1.0,89.5,89.481,11.17555682]
[1772467645565,2.08520571,89.499,89.445,1.11800547]
[1772467645736,2.08520571,89.498,89.46,13.913496]
[1772467645930,1.0,89.5,89.48,13.913496]
[1772467647450,2.08520571,89.498,89.47,13.913496]
[1772467647650,1.0,89.5,89.47,13.913496]
[1772467647852,1.0,89.5,89.455,1.11788049]
[1772467647853,2.08520571,89.519,89.49,13.913496]